{"text_format":"1","workbook":"xlsx","n_sheets":2,"sheets":["Лист1","Лист2"],"not_rendered":{"charts":0,"images":0,"macros":1,"external_links":0,"defined_names":0,"comments":0,"pivot_tables":0},"unopened":[],"bounds":{"document_bytes":16777216,"sheet_cells":100000,"rows_first":2000,"rows_last":500,"rows_between":2000,"halvings":0,"cell_chars":16384,"cell_head_chars":4096},"cells_cut":0,"cells_raw":0,"read":"whole","date_system":"1900"}

{"sheet":"Лист1","index":0,"n_rows":28,"n_cols":10,"rows_kept":28,"cut":false,"hidden":false,"merged":[]}
["В/С","Соискатель 1","Соискатель 2","Соискатель 3","Соискатель 4","Соискатель 5"]
["Вакансия 1",1,2,4,4,4,null,null,"Вакансия 1","Соискатель 2"]
["Вакансия 2",3,1,2,4,2,null,null,"Вакансия 2","Соискатель 5"]
["Вакансия 3",3,3,4,3,1,null,null,"Вакансия 3","Соискатель 4"]
["Вакансия 4",4,2,3,5,3,null,null,"Вакансия 4","Соискатель 3"]
["Макс. по столбцу",{"$f":"SUM(B2:B5)","v":11},{"$f":"SUM(C2:C5)","v":8},13,16,10]
[]
["В/С","Соискатель 1","Соискатель 2","Соискатель 3","Соискатель 4","Соискатель 5"]
["Вакансия 1",1,2,4,4,4]
["Вакансия 2",3,1,2,4,2]
["Вакансия 3",3,3,4,3,1]
["Вакансия 4",4,2,3,5,3]
["Макс. по столбцу",{"$f":"SUM(B9:B12)","v":11},{"$f":"SUM(C9:C12)","v":8},{"$f":"SUM(D9:D12)","v":13},{"$f":"SUM(E9:E12)","v":16},{"$f":"SUM(F9:F12)","v":10}]
[]
["В/С","Соискатель 1","Соискатель 2","Соискатель 3","Соискатель 5"]
["Вакансия 1",1,2,4,4]
["Вакансия 2",3,1,2,2]
["Вакансия 4",4,2,3,3]
["Макс. по столбцу",{"$f":"SUM(B16:B18)","v":8},{"$f":"SUM(C16:C18)","v":5},{"$f":"SUM(D16:D18)","v":9},{"$f":"SUM(E16:E18)","v":9}]
[]
["В/С","Соискатель 1","Соискатель 2","Соискатель 3"]
["Вакансия 1",1,2,4]
["Вакансия 4",4,2,3]
["Макс. по столбцу",{"$f":"SUM(B22:B23)","v":5},{"$f":"SUM(C22:C23)","v":4},{"$f":"SUM(D22:D23)","v":7}]
[]
["В/С","Соискатель 1","Соискатель 2"]
["Вакансия 1",1,2]
["Макс. по столбцу",{"$f":"SUM(B27:B27)","v":1},{"$f":"SUM(C27:C27)","v":2}]

{"sheet":"Лист2","index":1,"n_rows":31,"n_cols":19,"rows_kept":31,"cut":false,"hidden":false,"merged":[]}
["В/С","Соискатель 1","Соискатель 2","Соискатель 3","Соискатель 4","Соискатель 5",null,"В/С","Соискатель 1","Соискатель 2","Соискатель 3","Соискатель 4","Соискатель 5"]
["Вакансия 1",1,2,4,4,4.0999999999999996,null,"Вакансия 1",1,2,4,4,4,null,null,"Вакансия 1","Соискатель 2","Вакансия 1","Соискатель 2"]
["Вакансия 2",3,1,2,4,2,null,"Вакансия 2",3,1,2,4,2,null,null,"Вакансия 2","Соискатель 5","Вакансия 2","Соискатель 5"]
["Вакансия 3",3,3,4,3,1,null,"Вакансия 3",3,3,4,3,1,null,null,"Вакансия 3","Соискатель 4","Вакансия 3","Соискатель 4"]
["Вакансия 4",4,2,3,5,3,null,"Вакансия 4",4,2,3,5,3,null,null,"Вакансия 4","Соискатель 3","Вакансия 4","Соискатель 3"]
[null,null,null,null,null,null,null,"Макс. по столбцу",{"$f":"SUM(I2:I5)","v":11},{"$f":"SUM(J2:J5)","v":8},{"$f":"SUM(K2:K5)","v":13},{"$f":"SUM(L2:L5)","v":16},{"$f":"SUM(M2:M5)","v":10}]
[]
[null,null,null,null,null,null,null,"В/С","Соискатель 1","Соискатель 2","Соискатель 3","Соискатель 4","Соискатель 5"]
[null,null,null,null,null,null,null,"Вакансия 1",1,2,4,4,4]
[null,null,null,null,null,null,null,"Вакансия 2",3,1,2,4,2]
[null,null,null,null,null,null,null,"Вакансия 3",3,3,4,3,1]
[null,null,null,null,null,null,null,"Вакансия 4",4,2,3,5,3]
[null,null,null,null,null,null,null,"Макс. по столбцу",{"$f":"SUM(I9:I12)","v":11},{"$f":"SUM(J9:J12)","v":8},13,16,10]
[]
[null,null,null,null,null,null,null,"В/С","Соискатель 1","Соискатель 2","Соискатель 3","Соискатель 5"]
[null,null,null,null,null,null,null,"Вакансия 1",1,2,4,4]
[null,null,null,null,null,null,null,"Вакансия 2",3,1,2,2]
[null,null,null,null,null,null,null,"Вакансия 4",4,2,3,3]
[null,null,null,null,null,null,null,"Макс. по столбцу",{"$f":"SUM(I16:I18)","v":8},{"$f":"SUM(J16:J18)","v":5},{"$f":"SUM(K16:K18)","v":9},{"$f":"SUM(L16:L18)","v":9}]
[]
[null,null,null,null,null,null,null,"В/С","Соискатель 1","Соискатель 2","Соискатель 3"]
[null,null,null,null,null,null,null,"Вакансия 1",1,2,4]
[null,null,null,null,null,null,null,"Вакансия 4",4,2,3]
[null,null,null,null,null,null,null,"Макс. по столбцу",{"$f":"SUM(I22:I23)","v":5},{"$f":"SUM(J22:J23)","v":4},{"$f":"SUM(K22:K23)","v":7}]
[]
["В/С","Соискатель 1","Соискатель 2","Соискатель 3","Соискатель 4","Соискатель 5",null,"В/С","Соискатель 1","Соискатель 2"]
["Вакансия 1",1,2,4,4,4,null,"Вакансия 1",1,2]
["Вакансия 2",3,1,2,4,2,null,"Макс. по столбцу",{"$f":"SUM(I27:I27)","v":1},{"$f":"SUM(J27:J27)","v":2}]
["Вакансия 3",3,3,4,3,1]
["Вакансия 4",4,2,3,5,3]
["Макс. по столбцу",{"$f":"SUM(B27:B30)","v":11},{"$f":"SUM(C27:C30)","v":8},{"$f":"SUM(D27:D30)","v":13},{"$f":"SUM(E27:E30)","v":16},{"$f":"SUM(F27:F30)","v":10}]